[Event "Mistrzostwa Polski Juniorek Młodszych "]
[Site "Suwałki, Poland"]
[Date "????.??.??"]
[Round "1.11"]
[White "Piekutowska, Lena"]
[Black "Jastrzebska, Lena"]
[Result "1-0"]
[WhiteElo "1797"]
[BlackElo "1526"]
[PlyCount "121"]
[TimeControl "90/40+15:0"]
[WhiteClock "0:24:11"]
[BlackClock "0:10:34"]

1. d4 {[%emt 0:00:00]} d5 {[%emt 0:00:00]} 2. c4 {[%emt 0:00:00]} e6 {[%emt 0:
00:00]} 3. Nc3 {[%emt 0:00:00]} Nf6 {[%emt 0:00:00]} 4. cxd5 {[%emt 0:00:00]}
exd5 {[%emt 0:00:00]} 5. Bg5 {[%emt 0:00:00]} Be7 {[%emt 0:00:00]} 6. e3 {
[%emt 0:00:00]} O-O {[%emt 0:00:25]} 7. Bd3 {[%emt 0:00:00]} c6 {[%emt 0:00:00]
} 8. Nge2 {[%emt 0:00:00]} Nbd7 {[%emt 0:00:00]} 9. Qc2 {[%emt 0:00:00]} Re8 {
[%emt 0:00:00]} 10. O-O {[%emt 0:00:00]} Nf8 {[%emt 0:00:00]} 11. Ng3 {[%emt 0:
00:00]} g6 {[%emt 0:00:00]} 12. Rfc1 {[%emt 0:00:00]} Ne6 {[%emt 0:00:00]} 13.
Bxf6 {[%emt 0:00:00]} Bxf6 {[%emt 0:00:00]} 14. Rab1 {[%emt 0:00:00]} Bd7 {
[%emt 0:00:00]} 15. b4 {[%emt 0:00:00]} a6 {[%emt 0:00:00]} 16. Qb3 {[%emt 0:
00:00]} Qc8 {[%emt 0:00:00]} 17. a4 {[%emt 0:00:00]} h5 {[%emt 0:00:00]} 18.
Nxd5 {[%emt 0:00:00]} Qd8 {[%emt 0:00:00]} 19. Nxf6+ {[%emt 0:00:00]} Qxf6 {
[%emt 0:00:00]} 20. Ne4 {[%emt 0:00:00]} Qh4 {[%emt 0:00:00]} 21. Nc5 {[%emt 0:
00:00]} Bc8 {[%emt 0:00:00]} 22. Nxe6 {[%emt 0:00:00]} Bxe6 {[%emt 0:00:00]}
23. Bc4 {[%emt 0:00:00]} Bxc4 {[%emt 0:00:00]} 24. Rxc4 {[%emt 0:00:00]} Qe7 {
[%emt 0:00:00]} 25. Rbc1 {[%emt 0:00:00]} Qe6 {[%emt 0:00:00]} 26. R4c3 {
[%emt 0:00:00]} Qxb3 {[%emt 0:00:00]} 27. Rxb3 {[%emt 0:00:00]} Kg7 {[%emt 0:
00:00]} 28. h3 {[%emt 0:00:00]} Re6 {[%emt 0:00:00]} 29. f3 {[%emt 0:00:00]} a5
{[%emt 0:00:00]} 30. Kf2 {[%emt 0:00:00]} axb4 {[%emt 0:00:00]} 31. Rxb4 {
[%emt 0:00:00]} b5 {[%emt 0:00:00]} 32. Ra1 {[%emt 0:00:00]} Ra5 {[%emt 0:00:
00]} 33. d5 {[%emt 0:00:00]} cxd5 {[%emt 0:00:00]} 34. Rxb5 {[%emt 0:00:00]}
Rxb5 {[%emt 0:00:00]} 35. axb5 {[%emt 0:00:00]} Rb6 {[%emt 0:00:00]} 36. Rb1 {
[%emt 0:00:00]} Kf6 {[%emt 0:00:00]} 37. Ke2 {[%emt 0:00:00]} Ke5 {[%emt 0:02:
35]} 38. Kd3 Ke6 {[%emt 0:00:00]} 39. Kd4 {[%emt 0:00:08]} Kd6 {[%emt 0:00:06]}
40. Rb2 {[%emt 0:00:00]} Rb7 {[%emt 0:00:00]} 41. b6 {[%emt 0:00:00]} Kc6 {
[%emt 0:00:00]} 42. Rc2+ {[%emt 0:00:00]} Kd6 {[%emt 0:00:00]} 43. Rb2 {
[%emt 0:00:00]} Kc6 {[%emt 0:00:14]} 44. g4 {[%emt 0:00:00]} h4 {[%emt 0:00:00]
} 45. g5 {[%emt 0:00:00]} Kd6 {[%emt 0:00:23]} 46. Rb3 {[%emt 0:00:00]} Kc6 {
[%emt 0:00:28]} 47. Ke5 {[%emt 0:00:00]} Kc5 {[%emt 0:00:00]} 48. Rb1 {[%emt 0:
00:04]} Re7+ {[%emt 0:00:00]} 49. Kf4 {[%emt 0:00:00]} Rb7 {[%emt 0:00:00]} 50.
Kg4 {[%emt 0:03:19]} Rxb6 {[%emt 0:00:00]} 51. Rxb6 {[%emt 0:00:00]} Kxb6 {
[%emt 0:00:00]} 52. Kxh4 Kc5 {[%emt 0:00:06]} 53. Kg4 {[%emt 0:00:08]} Kd6 {
[%emt 0:00:00]} 54. f4 {[%emt 0:01:18]} Ke6 {[%emt 0:00:27]} 55. h4 {[%emt 0:
00:25]} Ke7 {[%emt 0:00:00]} 56. f5 {[%emt 0:00:10]} Ke8 {[%emt 0:00:00]} 57.
Kf4 {[%emt 0:00:08]} Ke7 {[%emt 0:00:00]} 58. fxg6 {[%emt 0:00:00]} fxg6 {
[%emt 0:00:00]} 59. Ke5 {[%emt 0:00:00]} d4 {[%emt 0:00:00]} 60. exd4 {[%emt 0:
00:00]} Kd7 {[%emt 0:00:00]} 61. Ke4 {[%emt 0:00:00]} 1-0

[Event "Mistrzostwa Polski Juniorek Młodszych "]
[Site "Suwałki, Poland"]
[Date "????.??.??"]
[Round "1.15"]
[White "Kochanowska, Patrycja"]
[Black "Jedlikowska, Maja"]
[Result "1/2-1/2"]
[WhiteElo "1756"]
[BlackElo "1520"]
[PlyCount "74"]
[TimeControl "90/40+15:0"]
[WhiteClock "0:16:36"]
[BlackClock "0:09:26"]

1. e4 {[%emt 0:00:00]} e6 {[%emt 0:00:00]} 2. d4 {[%emt 0:00:00]} d5 {[%emt 0:
00:00]} 3. exd5 {[%emt 0:00:00]} exd5 {[%emt 0:00:00]} 4. Bf4 {[%emt 0:00:00]}
Nf6 {[%emt 0:00:00]} 5. Bd3 {[%emt 0:00:00]} Bd6 {[%emt 0:00:00]} 6. Bxd6 {
[%emt 0:00:00]} Qxd6 {[%emt 0:00:00]} 7. c3 {[%emt 0:00:00]} O-O {[%emt 0:00:
00]} 8. Ne2 {[%emt 0:00:00]} Nc6 {[%emt 0:00:00]} 9. h3 {[%emt 0:00:00]} h6 {
[%emt 0:00:00]} 10. O-O {[%emt 0:00:00]} Ne7 {[%emt 0:00:00]} 11. Ng3 {[%emt 0:
00:00]} Be6 {[%emt 0:00:00]} 12. Nd2 {[%emt 0:00:00]} Qd7 {[%emt 0:00:00]} 13.
Qc2 {[%emt 0:00:00]} c6 {[%emt 0:00:00]} 14. Rfe1 {[%emt 0:00:00]} Qc7 {
[%emt 0:00:00]} 15. Nb3 {[%emt 0:00:00]} b6 {[%emt 0:00:00]} 16. Rac1 {[%emt 0:
00:00]} Rad8 {[%emt 0:00:00]} 17. Nd2 {[%emt 0:00:00]} Rfe8 {[%emt 0:00:00]}
18. Nf3 {[%emt 0:00:00]} Nc8 {[%emt 0:00:00]} 19. Ne5 {[%emt 0:00:00]} Nd7 {
[%emt 0:00:00]} 20. Qd2 {[%emt 0:00:00]} Nxe5 {[%emt 0:00:00]} 21. Rxe5 {
[%emt 0:00:00]} f6 {[%emt 0:00:00]} 22. Re3 {[%emt 0:00:00]} Bf7 {[%emt 0:00:
00]} 23. Rce1 {[%emt 0:00:00]} Nd6 {[%emt 0:00:00]} 24. b3 {[%emt 0:00:00]} b5
{[%emt 0:00:00]} 25. Bc2 {[%emt 0:00:00]} Rxe3 {[%emt 0:00:00]} 26. Rxe3 {
[%emt 0:00:00]} Re8 {[%emt 0:00:00]} 27. Qe2 {[%emt 0:00:00]} Rxe3 {[%emt 0:00:
00]} 28. Qxe3 {[%emt 0:00:00]} Kf8 {[%emt 0:00:00]} 29. Kf1 {[%emt 0:00:00]} a5
{[%emt 0:00:00]} 30. Ne2 {[%emt 0:00:00]} Qe7 {[%emt 0:00:00]} 31. Nf4 {
[%emt 0:00:00]} Qxe3 {[%emt 0:00:00]} 32. fxe3 {[%emt 0:00:00]} Ke7 {[%emt 0:
00:00]} 33. Kf2 {[%emt 0:00:00]} g5 {[%emt 0:00:00]} 34. Ne2 {[%emt 0:00:00]}
f5 {[%emt 0:00:00]} 35. Nc1 {[%emt 0:00:00]} Kf6 {[%emt 0:00:00]} 36. Bd3 {
[%emt 0:00:00]} Bg6 {[%emt 0:00:00]} 37. Kf3 {[%emt 0:00:29]} h5 {[%emt 0:04:
01]} 1/2-1/2

[Event "Mistrzostwa Polski Juniorek Młodszych "]
[Site "Suwałki, Poland"]
[Date "????.??.??"]
[Round "1.18"]
[White "Bogalecka, Gabriela"]
[Black "Racis, Weronika"]
[Result "1-0"]
[WhiteElo "1502"]
[BlackElo "1722"]
[PlyCount "77"]
[TimeControl "90/40+15:0"]
[WhiteClock "0:02:17"]
[BlackClock "0:48:39"]

1. e4 {[%emt 0:00:00]} e6 {[%emt 0:00:00]} 2. d4 {[%emt 0:00:00]} d5 {[%emt 0:
00:00]} 3. exd5 {[%emt 0:00:00]} exd5 {[%emt 0:00:00]} 4. c4 {[%emt 0:00:00]}
Nf6 {[%emt 0:00:00]} 5. Nc3 {[%emt 0:00:00]} c6 {[%emt 0:00:00]} 6. Nf3 {
[%emt 0:00:00]} Bd6 {[%emt 0:00:00]} 7. Bg5 {[%emt 0:00:00]} dxc4 {[%emt 0:00:
00]} 8. Bxc4 {[%emt 0:00:00]} O-O {[%emt 0:00:00]} 9. O-O {[%emt 0:00:00]} Bg4
{[%emt 0:00:00]} 10. h3 {[%emt 0:00:00]} Bh5 {[%emt 0:00:00]} 11. Ne4 {[%emt 0:
00:00]} Be7 {[%emt 0:00:00]} 12. Bxf6 {[%emt 0:00:00]} Bxf6 {[%emt 0:00:00]}
13. Nxf6+ {[%emt 0:00:00]} Qxf6 {[%emt 0:00:00]} 14. Be2 {[%emt 0:00:00]} Rd8 {
[%emt 0:00:00]} 15. Ne5 {[%emt 0:00:00]} Bxe2 {[%emt 0:00:00]} 16. Qxe2 {
[%emt 0:00:00]} Rxd4 {[%emt 0:00:00]} 17. Rad1 {[%emt 0:00:00]} c5 {[%emt 0:00:
00]} 18. Nf3 {[%emt 0:00:00]} Rd8 {[%emt 0:00:00]} 19. Qe5 {[%emt 0:00:00]} Nd7
{[%emt 0:00:00]} 20. Qc7 {[%emt 0:00:00]} Nb6 {[%emt 0:00:00]} 21. Rxd8+ {
[%emt 0:00:00]} Rxd8 {[%emt 0:00:00]} 22. Qxb7 {[%emt 0:00:00]} Qxb2 {[%emt 0:
00:00]} 23. Qxa7 {[%emt 0:00:00]} c4 {[%emt 0:00:00]} 24. Ng5 {[%emt 0:00:00]}
Qf6 {[%emt 0:00:00]} 25. Ne4 {[%emt 0:00:00]} Qc6 {[%emt 0:00:00]} 26. Ng3 {
[%emt 0:00:00]} h6 {[%emt 0:00:00]} 27. Qa3 {[%emt 0:00:00]} c3 {[%emt 0:00:00]
} 28. Rc1 {[%emt 0:00:00]} c2 {[%emt 0:00:00]} 29. Kh2 {[%emt 0:00:00]} Rd2 {
[%emt 0:00:00]} 30. Qe3 {[%emt 0:00:00]} Nc4 {[%emt 0:00:00]} 31. Qe4 {[%emt 0:
00:00]} Qa4 {[%emt 0:00:00]} 32. Nf1 {[%emt 0:00:00]} Rxf2 {[%emt 0:01:07]} 33.
Ne3 {[%emt 0:00:00]} Qa3 {[%emt 0:01:29]} 34. Qe8+ {[%emt 0:00:00]} Kh7 {
[%emt 0:00:07]} 35. Qe4+ {[%emt 0:00:00]} f5 {[%emt 0:02:43]} 36. Nxf5 {
[%emt 0:00:00]} Qxc1 {[%emt 0:00:07]} 37. Ne7+ {[%emt 0:00:00]} Kh8 {[%emt 0:
00:12]} 38. Qa8+ {[%emt 0:00:00]} Kh7 {[%emt 0:02:08]} 39. Qg8# {[%emt 0:00:00]
} 1-0

[Event "Mistrzostwa Polski Juniorek Młodszych "]
[Site "Suwałki, Poland"]
[Date "????.??.??"]
[Round "1.21"]
[White "Polakiewicz, Blanka"]
[Black "Kaczan, Anna"]
[Result "1-0"]
[WhiteElo "1677"]
[BlackElo "1480"]
[PlyCount "101"]
[TimeControl "90/40+15:0"]
[WhiteClock "0:13:14"]
[BlackClock "0:15:45"]

1. e4 {[%emt 0:00:00]} c5 {[%emt 0:00:00]} 2. Nf3 {[%emt 0:00:00]} d6 {[%emt 0:
00:00]} 3. d4 {[%emt 0:00:00]} cxd4 {[%emt 0:00:00]} 4. Nxd4 {[%emt 0:00:00]}
Nf6 {[%emt 0:00:00]} 5. Nc3 {[%emt 0:00:00]} a6 {[%emt 0:00:00]} 6. Be2 {
[%emt 0:00:00]} e5 {[%emt 0:00:00]} 7. Nb3 {[%emt 0:00:00]} Be7 {[%emt 0:00:00]
} 8. Be3 {[%emt 0:00:00]} Be6 {[%emt 0:00:00]} 9. f3 {[%emt 0:00:00]} h5 {
[%emt 0:00:00]} 10. Qd2 {[%emt 0:00:00]} Nbd7 {[%emt 0:00:00]} 11. O-O {
[%emt 0:00:00]} h4 {[%emt 0:00:00]} 12. f4 {[%emt 0:00:00]} b5 {[%emt 0:00:00]}
13. f5 {[%emt 0:00:00]} Bc4 {[%emt 0:00:00]} 14. a4 {[%emt 0:00:00]} Bxe2 {
[%emt 0:00:00]} 15. Qxe2 {[%emt 0:00:00]} b4 {[%emt 0:00:00]} 16. Nd5 {[%emt 0:
00:00]} Nxd5 {[%emt 0:00:00]} 17. exd5 {[%emt 0:00:00]} a5 {[%emt 0:00:00]} 18.
Nd2 {[%emt 0:00:00]} Kf8 {[%emt 0:00:00]} 19. Nc4 {[%emt 0:00:00]} Qc7 {
[%emt 0:00:00]} 20. b3 {[%emt 0:00:00]} Rb8 {[%emt 0:00:00]} 21. Rad1 {[%emt 0:
00:00]} Nf6 {[%emt 0:00:00]} 22. h3 {[%emt 0:00:00]} Nh5 {[%emt 0:00:00]} 23.
Bf2 {[%emt 0:00:00]} Nf4 {[%emt 0:00:00]} 24. Qe4 {[%emt 0:00:00]} Rh5 {
[%emt 0:00:00]} 25. Kh1 {[%emt 0:00:00]} Bd8 {[%emt 0:01:30]} 26. Be3 {[%emt 0:
00:00]} Ne2 {[%emt 0:01:19]} 27. Qg4 {[%emt 0:00:00]} Ng3+ {[%emt 0:00:29]} 28.
Kg1 {[%emt 0:00:00]} Rh7 {[%emt 0:02:44]} 29. Rf3 {[%emt 0:00:00]} Qd7 {
[%emt 0:00:11]} 30. Bf2 {[%emt 0:00:05]} Ne2+ {[%emt 0:00:35]} 31. Kf1 {
[%emt 0:00:00]} Nf4 {[%emt 0:00:00]} 32. Rxf4 {[%emt 0:02:08]} exf4 {[%emt 0:
00:00]} 33. Qxf4 {[%emt 0:00:00]} Rh6 {[%emt 0:00:30]} 34. Bd4 {[%emt 0:02:15]}
g5 {[%emt 0:00:12]} 35. Qf3 {[%emt 0:02:04]} f6 {[%emt 0:00:11]} 36. Re1 {
[%emt 0:00:10]} Kg7 {[%emt 0:00:28]} 37. Re6 {[%emt 0:00:20]} Bc7 {[%emt 0:00:
01]} 38. Qe3 {[%emt 0:00:14]} Kg8 {[%emt 0:00:13]} 39. Bxf6 {[%emt 0:00:33]}
Rxf6 {[%emt 0:00:34]} 40. Qxg5+ {[%emt 0:00:00]} Qg7 {[%emt 0:00:00]} 41. Qxf6
{[%emt 0:00:00]} Rf8 {[%emt 0:00:00]} 42. Qxg7+ {[%emt 0:00:00]} Kxg7 {[%emt 0:
00:00]} 43. Re7+ {[%emt 0:00:00]} Rf7 {[%emt 0:00:00]} 44. Rxf7+ {[%emt 0:00:
00]} Kxf7 {[%emt 0:00:00]} 45. Ke2 {[%emt 0:00:00]} Kf6 {[%emt 0:00:24]} 46.
Ne3 {[%emt 0:00:00]} Ke5 {[%emt 0:00:00]} 47. Kf3 {[%emt 0:00:00]} Bb6 {
[%emt 0:00:00]} 48. Nc4+ {[%emt 0:00:00]} Kxf5 {[%emt 0:01:19]} 49. Nxb6 {
[%emt 0:00:00]} Ke5 {[%emt 0:00:00]} 50. Ke3 {[%emt 0:00:00]} Kf5 {[%emt 0:00:
00]} 51. Nc4 {[%emt 0:00:00]} 1-0

[Event "Mistrzostwa Polski Juniorek Młodszych "]
[Site "Suwałki, Poland"]
[Date "????.??.??"]
[Round "1.1"]
[White "Matskevich, Varvara"]
[Black "Poloczek, Maja"]
[Result "1-0"]
[WhiteElo "1989"]
[BlackElo "1591"]
[PlyCount "95"]
[TimeControl "90/40+15:0"]
[WhiteClock "0:18:12"]
[BlackClock "0:52:16"]

1. e4 {[%emt 0:00:00]} e5 {[%emt 0:00:00]} 2. Nf3 {[%emt 0:00:00]} Nc6 {
[%emt 0:00:00]} 3. Bb5 {[%emt 0:00:00]} a6 {[%emt 0:00:00]} 4. Ba4 {[%emt 0:00:
00]} Nf6 {[%emt 0:00:00]} 5. d3 {[%emt 0:00:00]} Be7 {[%emt 0:00:00]} 6. c3 {
[%emt 0:00:00]} b5 {[%emt 0:00:00]} 7. Bb3 {[%emt 0:00:00]} O-O {[%emt 0:00:00]
} 8. O-O {[%emt 0:00:00]} d5 {[%emt 0:00:00]} 9. Nbd2 {[%emt 0:00:00]} Re8 {
[%emt 0:00:00]} 10. Qe2 {[%emt 0:00:00]} Bf8 {[%emt 0:00:00]} 11. Rd1 {[%emt 0:
00:00]} g6 {[%emt 0:00:00]} 12. Nf1 {[%emt 0:00:00]} Bg7 {[%emt 0:00:00]} 13.
Ng3 {[%emt 0:00:00]} Bb7 {[%emt 0:00:00]} 14. Bd2 {[%emt 0:00:00]} a5 {[%emt 0:
00:00]} 15. a4 {[%emt 0:00:00]} b4 {[%emt 0:00:00]} 16. Ng5 {[%emt 0:00:00]} h6
{[%emt 0:00:00]} 17. exd5 {[%emt 0:00:00]} Nxd5 {[%emt 0:00:00]} 18. Qf3 {
[%emt 0:00:00]} hxg5 {[%emt 0:00:00]} 19. Bxd5 {[%emt 0:00:00]} Qf6 {[%emt 0:
00:00]} 20. Qxf6 {[%emt 0:00:00]} Bxf6 {[%emt 0:00:00]} 21. Ne4 {[%emt 0:00:00]
} Be7 {[%emt 0:00:00]} 22. Bxg5 {[%emt 0:00:00]} Bxg5 {[%emt 0:00:00]} 23. Nxg5
{[%emt 0:00:00]} Re7 {[%emt 0:00:00]} 24. Ne4 {[%emt 0:00:00]} Rd8 {[%emt 0:00:
00]} 25. cxb4 {[%emt 0:00:00]} axb4 {[%emt 0:00:00]} 26. a5 {[%emt 0:00:00]}
Kg7 {[%emt 0:00:00]} 27. Bc4 {[%emt 0:00:00]} Nxa5 {[%emt 0:00:00]} 28. Nc5 {
[%emt 0:00:00]} Nxc4 {[%emt 0:00:00]} 29. dxc4 {[%emt 0:00:00]} Rxd1+ {[%emt 0:
00:00]} 30. Rxd1 {[%emt 0:00:00]} Bc6 {[%emt 0:00:00]} 31. b3 {[%emt 0:00:00]}
Re8 {[%emt 0:00:00]} 32. Na6 {[%emt 0:00:00]} Be4 {[%emt 0:00:00]} 33. Nc5 {
[%emt 0:00:00]} Bc6 {[%emt 0:00:00]} 34. Ra1 {[%emt 0:00:00]} Rd8 {[%emt 0:00:
00]} 35. Na6 {[%emt 0:00:00]} Ra8 {[%emt 0:00:00]} 36. Ra2 {[%emt 0:00:00]} Rd8
{[%emt 0:00:00]} 37. h3 {[%emt 0:00:00]} Be4 {[%emt 0:00:00]} 38. Rb2 {[%emt 0:
00:00]} Rd1+ {[%emt 0:00:00]} 39. Kh2 {[%emt 0:00:00]} Rb1 {[%emt 0:00:00]} 40.
Rxb1 {[%emt 0:00:00]} Bxb1 {[%emt 0:00:00]} 41. Nxb4 {[%emt 0:00:00]} Kf8 {
[%emt 0:00:00]} 42. Kg3 {[%emt 0:00:00]} Ke7 {[%emt 0:00:00]} 43. Kf3 {[%emt 0:
00:00]} Kd6 {[%emt 0:00:00]} 44. Ke3 {[%emt 0:00:00]} c5 {[%emt 0:00:00]} 45.
Nd3 {[%emt 0:00:00]} f5 {[%emt 0:00:00]} 46. h4 {[%emt 0:00:00]} f4+ {[%emt 0:
00:00]} 47. Kd2 {[%emt 0:00:00]} Ba2 {[%emt 0:00:00]} 48. Kc2 {[%emt 0:00:00]}
1-0

[Event "Mistrzostwa Polski Juniorek Młodszych "]
[Site "Suwałki, Poland"]
[Date "????.??.??"]
[Round "1.2"]
[White "Drapala, Katarzyna"]
[Black "Owczarek, Hanna"]
[Result "0-1"]
[WhiteElo "1591"]
[BlackElo "1920"]
[PlyCount "93"]
[TimeControl "90/40+15:0"]
[WhiteClock "0:21:24"]
[BlackClock "1:04:12"]

1. e4 {[%emt 0:00:00]} c5 {[%emt 0:00:00]} 2. Nf3 {[%emt 0:00:00]} Nc6 {
[%emt 0:00:00]} 3. d4 {[%emt 0:00:00]} cxd4 {[%emt 0:00:00]} 4. Nxd4 {[%emt 0:
00:00]} Nf6 {[%emt 0:00:00]} 5. Nc3 {[%emt 0:00:00]} e5 {[%emt 0:00:00]} 6.
Ndb5 {[%emt 0:00:00]} d6 {[%emt 0:00:00]} 7. Bg5 {[%emt 0:00:00]} a6 {[%emt 0:
00:00]} 8. Na3 {[%emt 0:00:00]} b5 {[%emt 0:00:00]} 9. Nd5 {[%emt 0:00:00]} Be7
{[%emt 0:00:00]} 10. Nxf6+ {[%emt 0:00:00]} Bxf6 {[%emt 0:00:00]} 11. Bxf6 {
[%emt 0:00:00]} Qxf6 {[%emt 0:00:00]} 12. Be2 {[%emt 0:00:00]} O-O {[%emt 0:00:
00]} 13. O-O {[%emt 0:00:00]} Bb7 {[%emt 0:00:00]} 14. c3 {[%emt 0:00:00]} Rfd8
{[%emt 0:00:00]} 15. Nc2 {[%emt 0:00:00]} Ne7 {[%emt 0:00:00]} 16. Bf3 {
[%emt 0:00:00]} d5 {[%emt 0:00:00]} 17. exd5 {[%emt 0:00:00]} Bxd5 {[%emt 0:00:
00]} 18. Bxd5 {[%emt 0:00:00]} Nxd5 {[%emt 0:00:00]} 19. Qe2 {[%emt 0:00:00]}
Qg6 {[%emt 0:00:00]} 20. Ne3 {[%emt 0:00:00]} Qe4 {[%emt 0:00:00]} 21. Qc2 {
[%emt 0:00:00]} Qxc2 {[%emt 0:00:00]} 22. Nxc2 {[%emt 0:00:00]} Rd6 {[%emt 0:
00:00]} 23. Rfe1 {[%emt 0:00:00]} f6 {[%emt 0:00:00]} 24. a4 {[%emt 0:00:00]}
bxa4 {[%emt 0:00:00]} 25. Rxa4 {[%emt 0:00:00]} Rb8 {[%emt 0:00:00]} 26. Nb4 {
[%emt 0:00:00]} Nxb4 {[%emt 0:00:00]} 27. Rxb4 {[%emt 0:00:00]} Rxb4 {[%emt 0:
00:00]} 28. cxb4 {[%emt 0:00:00]} Kf7 {[%emt 0:00:00]} 29. h4 {[%emt 0:00:00]}
Ke6 {[%emt 0:00:00]} 30. Ra1 {[%emt 0:00:00]} Kd5 {[%emt 0:01:04]} 31. b3 {
[%emt 0:00:00]} Rb6 {[%emt 0:00:00]} 32. g3 {[%emt 0:00:00]} Kd4 {[%emt 0:05:
32]} 33. Rd1+ {[%emt 0:00:00]} Kc3 {[%emt 0:02:18]} 34. Rd7 {[%emt 0:00:00]} g6
{[%emt 0:00:00]} 35. Rxh7 {[%emt 0:00:00]} Kxb3 {[%emt 0:00:00]} 36. Rg7 {
[%emt 0:00:00]} f5 {[%emt 0:00:00]} 37. Kf1 {[%emt 0:00:00]} Kxb4 {[%emt 0:00:
09]} 38. Rd7 {[%emt 0:00:00]} a5 {[%emt 0:00:00]} 39. Ke1 {[%emt 0:00:00]} a4 {
[%emt 0:00:00]} 40. Kd1 {[%emt 0:00:00]} Kc3 {[%emt 0:00:00]} 41. Rc7+ {
[%emt 0:00:00]} Kd3 {[%emt 0:00:00]} 42. Rd7+ {[%emt 0:00:00]} Ke4 {[%emt 0:00:
00]} 43. Rd2 {[%emt 0:00:00]} a3 {[%emt 0:00:00]} 44. Ra2 {[%emt 0:00:00]} Rb1+
{[%emt 0:00:00]} 45. Kc2 {[%emt 0:00:00]} Rb2+ {[%emt 0:00:00]} 46. Rxb2 {
[%emt 0:00:00]} axb2 {[%emt 0:00:00]} 47. Kxb2 {[%emt 0:00:00]} 0-1

[Event "Mistrzostwa Polski Juniorek Młodszych "]
[Site "Suwałki, Poland"]
[Date "????.??.??"]
[Round "1.13"]
[White "Malicka, Magdalena"]
[Black "Kolosza, Zuzanna"]
[Result "1-0"]
[WhiteElo "1780"]
[BlackElo "1523"]
[PlyCount "51"]
[TimeControl "90/40+15:0"]
[WhiteClock "0:02:24"]
[BlackClock "0:35:17"]

1. e4 {[%emt 0:00:00]} c5 {[%emt 0:00:00]} 2. Nf3 {[%emt 0:00:00]} e6 {[%emt 0:
00:00]} 3. c3 {[%emt 0:00:00]} Nf6 {[%emt 0:00:00]} 4. e5 {[%emt 0:00:00]} Nd5
{[%emt 0:00:00]} 5. d4 {[%emt 0:00:00]} cxd4 {[%emt 0:00:00]} 6. cxd4 {[%emt 0:
00:00]} Nc6 {[%emt 0:00:00]} 7. Bc4 {[%emt 0:00:00]} d6 {[%emt 0:00:00]} 8. O-O
{[%emt 0:00:00]} Qc7 {[%emt 0:00:00]} 9. a3 {[%emt 0:00:00]} Be7 {[%emt 0:00:
00]} 10. Qe2 {[%emt 0:00:00]} O-O {[%emt 0:00:00]} 11. Qe4 {[%emt 0:00:00]} Rd8
{[%emt 0:00:00]} 12. Ng5 {[%emt 0:00:00]} Bxg5 {[%emt 0:00:00]} 13. Bxg5 {
[%emt 0:00:00]} Nde7 {[%emt 0:00:00]} 14. Bd3 {[%emt 0:00:00]} g6 {[%emt 0:00:
00]} 15. Bf6 {[%emt 0:00:00]} dxe5 {[%emt 0:00:00]} 16. dxe5 {[%emt 0:00:00]}
Rd4 {[%emt 0:00:00]} 17. Qe3 {[%emt 0:00:00]} Rxd3 {[%emt 0:00:00]} 18. Qxd3 {
[%emt 0:00:00]} h6 {[%emt 0:01:27]} 19. Nc3 {[%emt 0:00:00]} b6 {[%emt 0:01:19]
} 20. Qh3 {[%emt 0:00:00]} Kh7 {[%emt 0:00:10]} 21. Nb5 {[%emt 0:00:00]} Qb8 {
[%emt 0:00:34]} 22. Nd6 {[%emt 0:00:00]} Ba6 {[%emt 0:00:09]} 23. Nxf7 {
[%emt 0:00:00]} Qf8 {[%emt 0:00:47]} 24. Ng5+ {[%emt 0:00:00]} Kg8 {[%emt 0:00:
08]} 25. Qxe6+ {[%emt 0:00:00]} Qf7 {[%emt 0:00:00]} 26. Qxf7# {[%emt 0:00:00]}
1-0

[Event "Mistrzostwa Polski Juniorek Młodszych "]
[Site "Suwałki, Poland"]
[Date "????.??.??"]
[Round "1.6"]
[White "Janaszak, Amelia"]
[Black "Lajdamik, Kinga"]
[Result "0-1"]
[WhiteElo "1556"]
[BlackElo "1900"]
[PlyCount "110"]
[TimeControl "90/40+15:0"]
[WhiteClock "0:06:13"]
[BlackClock "0:04:35"]

1. e4 {[%emt 0:00:00]} e5 {[%emt 0:00:00]} 2. Nf3 {[%emt 0:00:00]} Nc6 {
[%emt 0:00:00]} 3. d4 {[%emt 0:00:00]} exd4 {[%emt 0:00:00]} 4. Nxd4 {[%emt 0:
00:00]} Nf6 {[%emt 0:00:00]} 5. Nxc6 {[%emt 0:00:00]} bxc6 {[%emt 0:00:00]} 6.
Bd3 {[%emt 0:00:00]} Be7 {[%emt 0:00:00]} 7. O-O {[%emt 0:00:00]} O-O {[%emt 0:
00:00]} 8. Nc3 {[%emt 0:00:00]} d5 {[%emt 0:00:00]} 9. exd5 {[%emt 0:00:00]}
cxd5 {[%emt 0:00:00]} 10. h3 {[%emt 0:00:00]} c6 {[%emt 0:00:00]} 11. Bf4 {
[%emt 0:00:00]} Be6 {[%emt 0:00:00]} 12. Ne2 {[%emt 0:00:00]} c5 {[%emt 0:00:
00]} 13. c3 {[%emt 0:00:00]} Qb6 {[%emt 0:00:00]} 14. b3 {[%emt 0:00:00]} Nd7 {
[%emt 0:00:00]} 15. Rc1 {[%emt 0:00:00]} Bf6 {[%emt 0:00:00]} 16. Qc2 {[%emt 0:
00:00]} g6 {[%emt 0:00:00]} 17. c4 {[%emt 0:00:00]} d4 {[%emt 0:00:00]} 18.
Rfe1 {[%emt 0:00:00]} Bg7 {[%emt 0:00:00]} 19. Ng3 {[%emt 0:00:00]} f5 {
[%emt 0:00:00]} 20. Be2 {[%emt 0:00:00]} Rae8 {[%emt 0:00:00]} 21. Bf3 {
[%emt 0:00:00]} Bf7 {[%emt 0:00:00]} 22. Qd2 {[%emt 0:00:00]} Ne5 {[%emt 0:00:
00]} 23. Bxe5 {[%emt 0:00:00]} Bxe5 {[%emt 0:00:00]} 24. Ne2 {[%emt 0:00:00]}
Qc7 {[%emt 0:00:00]} 25. g3 {[%emt 0:00:00]} Kg7 {[%emt 0:00:00]} 26. Rcd1 {
[%emt 0:00:00]} Bf6 {[%emt 0:00:00]} 27. h4 {[%emt 0:00:00]} Re7 {[%emt 0:00:
00]} 28. Nf4 {[%emt 0:00:00]} Rfe8 {[%emt 0:00:00]} 29. Rxe7 {[%emt 0:00:00]}
Qxe7 {[%emt 0:00:00]} 30. Bd5 {[%emt 0:00:00]} Be5 {[%emt 0:01:05]} 31. Bxf7 {
[%emt 0:00:00]} Qxf7 {[%emt 0:00:00]} 32. Nd5 {[%emt 0:00:00]} Bd6 {[%emt 0:00:
25]} 33. f4 {[%emt 0:00:00]} Re4 {[%emt 0:01:22]} 34. Kf2 {[%emt 0:00:07]} Qe6
{[%emt 0:01:06]} 35. Kf3 {[%emt 0:01:09]} h6 {[%emt 0:00:41]} 36. Kf2 {[%emt 0:
01:01]} Be7 {[%emt 0:01:13]} 37. Re1 {[%emt 0:01:26]} Bd8 {[%emt 0:00:02]} 38.
a3 {[%emt 0:01:14]} Qa6 {[%emt 0:01:08]} 39. Qc1 {[%emt 0:00:51]} Ba5 {[%emt 0:
01:27]} 40. b4 {[%emt 0:00:00]} Bb6 {[%emt 0:00:00]} 41. g4 {[%emt 0:00:00]}
Bd8 {[%emt 0:00:00]} 42. g5 {[%emt 0:00:00]} cxb4 {[%emt 0:00:00]} 43. Nxb4 {
[%emt 0:00:00]} Qe6 {[%emt 0:00:00]} 44. Nd5 {[%emt 0:00:00]} Ba5 {[%emt 0:00:
00]} 45. Nb4 {[%emt 0:00:00]} Qe7 {[%emt 0:00:00]} 46. Qd2 {[%emt 0:00:34]} Qc5
{[%emt 0:00:00]} 47. Rc1 {[%emt 0:02:06]} d3+ {[%emt 0:00:00]} 48. Kf1 {
[%emt 0:00:26]} Qd4 {[%emt 0:00:07]} 49. Qxd3 {[%emt 0:00:29]} Rxf4+ {[%emt 0:
00:00]} 50. Ke2 {[%emt 0:00:38]} Qf2+ {[%emt 0:00:00]} 51. Kd1 {[%emt 0:00:00]}
Rd4 {[%emt 0:00:00]} 52. Qxd4+ {[%emt 0:00:00]} Qxd4+ {[%emt 0:00:00]} 53. Ke2
{[%emt 0:00:00]} Bb6 {[%emt 0:00:00]} 54. Rd1 {[%emt 0:00:00]} Qe3+ {[%emt 0:
00:00]} 55. Kf1 {[%emt 0:00:00]} Qf2# {[%emt 0:00:00]} 0-1